bitfinex-derivatives/quotes_BTCF0:USTF0_20251009
["timestamp","ask_amount","ask_price","bid_price","bid_amount"]
[1760044419966,0.006,121310.0,121300.0,1.52367886]
[1760044421067,0.006,121310.0,121300.0,1.1948388]
[1760044421270,0.006,121310.0,121300.0,1.52367886]
[1760044425169,0.006,121310.0,121300.0,1.29784357]
[1760044425469,0.006,121310.0,121300.0,1.62668363]
[1760044425669,0.006,121310.0,121300.0,1.62584363]
[1760044426768,0.006,121310.0,121300.0,1.74813224]
[1760044427665,0.01905,121310.0,121300.0,1.74813224]
[1760044428576,0.01905,121310.0,121300.0,1.64512747]
[1760044428971,0.01805,121310.0,121300.0,1.64512747]
[1760044429176,0.01805,121310.0,121300.0,1.64612747]
[1760044429774,0.005,121310.0,121300.0,1.64612747]
[1760044430472,0.005,121310.0,121300.0,1.64592747]
[1760044430670,0.005,121310.0,121300.0,0.89732747]
[1760044430872,0.03935,121310.0,121300.0,1.1946788]
[1760044431476,0.36404006,121320.0,121310.0,0.104962]
[1760044432174,0.72484006,121320.0,121310.0,0.104962]
[1760044432876,0.72484006,121320.0,121310.0,0.29662133]
[1760044434176,0.72484006,121320.0,121310.0,0.104962]
[1760044436282,0.72484006,121320.0,121310.0,0.29661127]
[1760044436780,0.37848,121330.0,121310.0,0.99525133]
[1760044436980,0.3658,121330.0,121320.0,0.57580107]
[1760044437173,0.3658,121330.0,121320.0,0.65818637]
[1760044437373,0.3658,121330.0,121320.0,0.84983564]
[1760044437971,0.7658,121330.0,121320.0,1.18709987]
[1760044438176,0.005,121330.0,121320.0,1.18709987]
[1760044438575,0.005,121330.0,121320.0,0.85825981]
[1760044439083,0.007,121330.0,121320.0,0.85825981]
[1760044439883,0.007,121330.0,121320.0,1.18709987]
[1760044440282,0.007,121330.0,121320.0,1.54789987]
[1760044440580,0.01805,121370.0,121350.0,0.0823649]
[1760044440581,0.005,121370.0,121350.0,0.0823649]
[1760044440783,0.01825,121390.0,121370.0,0.0823511]
[1760044440784,0.02841,121390.0,121370.0,0.0823511]
[1760044441082,0.04166,121390.0,121380.0,0.64650613]
[1760044441584,0.01825,121390.0,121380.0,0.97534619]
[1760044441981,0.01825,121390.0,121380.0,0.82799251]
[1760044442184,0.01825,121390.0,121380.0,1.18879251]
[1760044442384,0.005,121390.0,121380.0,1.18879251]
[1760044442686,0.005,121390.0,121380.0,0.77198456]
[1760044442887,0.005,121390.0,121380.0,1.1923045]
[1760044443287,0.005,121390.0,121380.0,1.33874938]
[1760044443484,0.005,121390.0,121380.0,0.58962938]
[1760044443786,0.005,121390.0,121380.0,1.33870938]
[1760044443986,0.005,121390.0,121380.0,1.40528327]
[1760044444188,0.005,121390.0,121380.0,1.40628327]
[1760044444387,0.01825,121390.0,121380.0,0.65720327]
[1760044444590,0.01825,121390.0,121380.0,1.40620327]
[1760044444983,0.01825,121390.0,121380.0,0.65720327]
[1760044445191,1.13130006,121390.0,121380.0,0.29640327]
[1760044445393,0.44166,121390.0,121380.0,1.40616327]
[1760044445698,0.41825,121390.0,121380.0,1.75482814]
[1760044445883,0.01825,121390.0,121380.0,2.00111481]
[1760044446089,0.005,121390.0,121380.0,1.50854147]
[1760044446392,0.005,121390.0,121380.0,1.85462993]
[1760044447184,0.005,121390.0,121380.0,1.36205659]
[1760044447386,0.00606456,121400.0,121390.0,0.0823377]
[1760044447689,0.00606456,121400.0,121390.0,0.79168697]
[1760044447892,0.00606456,121400.0,121390.0,0.68942437]
[1760044448094,0.00606456,121400.0,121390.0,0.79167423]
[1760044448290,0.00606456,121400.0,121390.0,1.0379609]
[1760044448492,0.00606456,121400.0,121390.0,0.79167423]
[1760044448695,0.00606456,121400.0,121390.0,3.35134756]
[1760044448894,0.00606456,121400.0,121390.0,3.49538437]
[1760044449195,6e-08,121400.0,121390.0,3.75122315]
[1760044449391,0.005,121410.0,121390.0,4.24379649]
[1760044449590,0.005,121410.0,121400.0,0.47230418]
[1760044449795,0.00200233,121420.0,121410.0,0.0823242]
[1760044450093,0.01325,121420.0,121410.0,0.32861087]
[1760044450396,0.01325,121420.0,121410.0,3.49517087]
[1760044450991,0.01325,121420.0,121410.0,2.8880442]
[1760044451185,0.01825,121430.0,121410.0,0.36899851]
[1760044451394,0.01325,121420.0,121410.0,2.14728271]
[1760044451694,0.37405,121420.0,121410.0,3.14264938]
[1760044452085,0.37405,121420.0,121410.0,0.09052271]
[1760044452289,0.37405,121420.0,121410.0,0.33680938]
[1760044452484,0.37405,121420.0,121410.0,3.14236938]
[1760044452691,0.3608,121420.0,121410.0,0.49052271]
[1760044452891,0.3608,121420.0,121410.0,3.78861605]
[1760044453291,0.3608,121420.0,121410.0,3.29604271]
[1760044453496,0.3608,121420.0,121410.0,3.78861605]
[1760044453797,0.37405,121420.0,121410.0,3.78849605]
[1760044455093,0.37405,121420.0,121410.0,3.78821605]
[1760044455293,0.3608,121420.0,121410.0,3.78821605]
[1760044456493,0.3608,121420.0,121410.0,3.29564271]
[1760044456700,0.3608,121420.0,121410.0,3.78821605]
[1760044458903,0.37905,121430.0,121420.0,0.0823169]
[1760044459103,0.37905,121430.0,121420.0,0.57489024]
[1760044460507,0.38005,121430.0,121420.0,0.57489024]
[1760044460911,0.38105,121430.0,121420.0,0.57489024]
[1760044462699,0.25018049,121430.0,121420.0,0.57489024]
[1760044462908,0.37405,121440.0,121430.0,0.0823101]
[1760044463211,0.37405,121440.0,121430.0,1.07671677]
[1760044464505,0.37505,121440.0,121430.0,1.07671677]
[1760044465309,0.001,121440.0,121430.0,1.32300344]
[1760044465901,0.01425,121440.0,121430.0,3.37912344]
[1760044466403,0.01425,121440.0,121430.0,3.37904344]
[1760044466404,0.37505,121440.0,121430.0,3.37904344]
[1760044467206,0.37505,121440.0,121430.0,0.57488344]
[1760044467412,0.37505,121440.0,121430.0,3.37900344]
[1760044468012,0.37505,121440.0,121430.0,3.37892344]
[1760044468212,0.37505,121440.0,121430.0,3.37888344]
[1760044468715,0.37505,121440.0,121430.0,3.48152889]
[1760044469108,0.01425,121440.0,121430.0,3.48152889]
[1760044469308,0.37505,121440.0,121430.0,3.37940344]
[1760044470411,0.37505,121440.0,121430.0,0.0823101]
[1760044470610,0.39846,121440.0,121430.0,3.13327677]
[1760044470911,0.39846,121440.0,121430.0,0.0823101]
[1760044471111,0.39846,121440.0,121430.0,1.07763677]
[1760044471414,0.37505,121440.0,121430.0,1.07763677]
[1760044473818,0.37505,121440.0,121430.0,1.17987113]
[1760044474118,0.40326,121440.0,121430.0,1.17987113]
[1760044475818,0.80326,121440.0,121430.0,1.17979113]
[1760044476618,0.80326,121440.0,121430.0,1.07755677]
[1760044477016,0.80326,121440.0,121430.0,0.0823101]
[1760044477216,0.80326,121440.0,121430.0,1.04619677]
[1760044477816,0.80326,121440.0,121430.0,1.07751677]
[1760044480023,0.80326,121440.0,121430.0,0.0823101]
[1760044480216,0.80326,121440.0,121430.0,0.92951677]
[1760044481222,0.80326,121440.0,121430.0,1.1798489]
[1760044482423,0.40326,121440.0,121430.0,0.93356223]
[1760044482619,1.37813624,121440.0,121430.0,0.10253263]
[1760044482817,0.73184957,121440.0,121430.0,0.93348223]
[1760044483022,1.37813624,121440.0,121430.0,0.10253263]
[1760044483222,1.37813624,121440.0,121430.0,0.85117263]
[1760044483622,1.37813624,121440.0,121430.0,0.74864]
[1760044484121,0.1241997,121430.0,121420.0,0.24963425]
[1760044484320,0.73128637,121430.0,121420.0,0.99823425]
[1760044484518,0.64897667,121430.0,121420.0,1.24452092]
[1760044484722,1.13128637,121430.0,121420.0,0.89570162]
[1760044485823,1.13228637,121430.0,121420.0,0.89570162]
[1760044487021,0.8859997,121430.0,121420.0,0.89570162]
[1760044487221,1.13228637,121430.0,121420.0,0.89570162]
[1760044488519,1.13228637,121430.0,121420.0,0.96901554]
[1760044488723,1.13228637,121430.0,121420.0,0.89570162]
[1760044489121,1.13228637,121430.0,121420.0,0.96900487]
[1760044489826,0.8859997,121430.0,121420.0,0.96900487]
[1760044490027,1.13228637,121430.0,121420.0,0.89570162]
[1760044490324,1.13228637,121430.0,121420.0,0.96899519]
[1760044490525,1.13228637,121430.0,121420.0,0.89570162]
[1760044492133,0.8859997,121430.0,121420.0,0.89570382]
[1760044492324,0.8859997,121430.0,121420.0,0.96897996]
[1760044492325,1.13228637,121430.0,121420.0,0.96897996]
[1760044492627,1.13228637,121430.0,121420.0,0.89570382]
[1760044494028,1.13228637,121430.0,121420.0,0.99823645]
[1760044495925,0.8859997,121430.0,121420.0,0.99823645]
[1760044496326,0.37548,121430.0,121420.0,1.49080979]
[1760044496935,0.37548,121430.0,121420.0,0.89570382]
[1760044497231,0.40419,121430.0,121420.0,1.14199049]
[1760044497431,0.40419,121430.0,121420.0,1.38827716]
[1760044497627,0.37548,121430.0,121420.0,1.38827716]
[1760044498333,0.37548,121430.0,121420.0,1.78827716]
[1760044500130,0.37548,121430.0,121420.0,1.93475234]
[1760044500333,0.37405,121440.0,121430.0,0.0823106]
[1760044500533,0.40071,121440.0,121430.0,0.32859727]
[1760044500936,0.40071,121440.0,121430.0,0.47507245]
[1760044501137,0.72930047,121440.0,121430.0,0.14647518]
[1760044501532,0.97558714,121440.0,121430.0,0.14647518]
[1760044501735,1.37558714,121440.0,121430.0,0.86991518]
[1760044501937,1.37658714,121440.0,121430.0,0.86991518]
[1760044503138,0.8840138,121440.0,121430.0,0.86991518]
[1760044503340,1.37658714,121440.0,121430.0,0.72344]
[1760044503638,1.29428334,121440.0,121430.0,0.8057506]
[1760044504238,1.37658714,121440.0,121430.0,0.8057506]
[1760044506536,1.37658714,121440.0,121430.0,0.22878578]
[1760044506743,1.37658714,121440.0,121430.0,0.97670578]
[1760044507543,1.21220615,121440.0,121430.0,0.97670578]
[1760044507841,1.21220615,121440.0,121430.0,0.97666578]
[1760044508044,1.21220615,121440.0,121430.0,0.97658578]
[1760044508232,1.21220615,121440.0,121430.0,0.14647518]
[1760044508436,1.21220615,121440.0,121430.0,0.97658578]
[1760044508842,1.5403985,121440.0,121430.0,0.14647518]
[1760044509443,2.2896385,121440.0,121430.0,0.14647518]
[1760044509643,1.5403985,121440.0,121430.0,0.14647518]
[1760044509942,0.1258206,121430.0,121420.0,0.5179426]
[1760044510144,0.81481295,121430.0,121420.0,0.5179426]
[1760044510939,0.81481295,121430.0,121420.0,0.60026]
[1760044511539,0.73250235,121430.0,121420.0,0.60026]
[1760044511933,0.73350235,121430.0,121420.0,0.60026]
[1760044512138,0.73350235,121430.0,121420.0,0.45378482]
[1760044513545,0.73250235,121430.0,121420.0,0.45378482]
[1760044513745,0.40431,121430.0,121420.0,0.45378482]
[1760044514047,0.73250235,121430.0,121420.0,0.45378482]
[1760044514446,0.73350235,121430.0,121420.0,0.45378482]
[1760044514948,0.73250235,121430.0,121420.0,0.45378482]
[1760044516150,0.81481295,121430.0,121420.0,0.45378482]
[1760044517450,0.81581295,121430.0,121420.0,0.64420256]
[1760044519150,0.73350235,121430.0,121420.0,0.64420256]
[1760044521051,0.73350235,121430.0,121420.0,0.45378482]
[1760044521545,0.40431,121430.0,121420.0,0.45378482]
[1760044522250,0.40531,121430.0,121420.0,0.45378482]
[1760044522651,0.73350235,121430.0,121420.0,0.45378482]
[1760044523451,0.73350235,121430.0,121420.0,0.64420256]
[1760044523751,0.73350235,121430.0,121420.0,0.64520256]
[1760044524147,0.73250235,121430.0,121420.0,0.64520256]
[1760044526352,0.40431,121430.0,121420.0,0.64520256]
[1760044526652,0.73250235,121430.0,121420.0,1.08700256]
[1760044528044,0.73250235,121430.0,121420.0,1.08600256]
[1760044528248,0.3331132,121430.0,121420.0,1.62377717]
[1760044528454,0.3608,121440.0,121430.0,0.0823106]
[1760044528653,0.3608,121440.0,121430.0,0.41050295]
[1760044530855,0.3618,121440.0,121430.0,0.41050295]
[1760044531455,0.3618,121440.0,121430.0,0.81050295]
[1760044531456,0.001,121440.0,121430.0,0.81050295]
[1760044533455,0.01732,121440.0,121430.0,3.2863506]
[1760044533655,0.01732,121440.0,121430.0,3.61454295]
[1760044533855,0.01732,121440.0,121430.0,3.21450295]
[1760044534158,0.37812,121440.0,121430.0,3.21450295]
[1760044534753,0.40486,121440.0,121430.0,0.0823106]
[1760044534960,0.40486,121440.0,121430.0,1.02119388]
[1760044536460,0.37812,121440.0,121430.0,1.16774708]
[1760044536758,0.37812,121440.0,121430.0,1.49593943]
[1760044537159,0.37812,121440.0,121430.0,1.30537615]
[1760044537460,0.37812,121440.0,121430.0,0.9771838]
[1760044537461,0.40486,121440.0,121430.0,0.9771838]
[1760044537661,0.40486,121440.0,121430.0,1.30537615]
[1760044537857,0.40486,121440.0,121430.0,0.55705615]
[1760044538058,0.40486,121440.0,121430.0,0.8304306]
[1760044538458,0.73305235,121440.0,121430.0,0.8304306]
[1760044538658,0.40486,121440.0,121430.0,0.0823106]
[1760044538959,0.40486,121440.0,121430.0,0.9769838]
[1760044539562,1.21535615,121440.0,121430.0,0.1465532]
[1760044539766,1.21535615,121440.0,121430.0,1.02091388]
[1760044540263,1.13305235,121440.0,121430.0,1.02091388]
[1760044540861,1.13305235,121440.0,121430.0,0.8303506]
[1760044542453,0.81535615,121440.0,121430.0,0.8303506]
[1760044542665,0.81535615,121440.0,121430.0,0.97698001]
[1760044544063,0.73305235,121440.0,121430.0,0.97698001]
[1760044544563,0.40486,121440.0,121430.0,0.97698001]
[1760044545163,0.37812,121440.0,121430.0,1.30517236]
[1760044545361,0.3618,121440.0,121430.0,1.30517236]
[1760044545564,0.001,121440.0,121430.0,1.30517236]
[1760044545758,0.3618,121440.0,121430.0,1.30517236]
[1760044545963,0.001,121440.0,121430.0,1.30517236]
[1760044546160,0.37774,121440.0,121430.0,1.30517236]
[1760044548167,0.001,121440.0,121430.0,1.70517236]
[1760044548965,0.001,121440.0,121430.0,1.55854295]
[1760044549768,0.001,121440.0,121430.0,1.70517236]
[1760044551172,0.001,121440.0,121430.0,1.37698001]
[1760044551769,0.37405,121460.0,121440.0,0.0823038]
[1760044552070,0.37405,121460.0,121450.0,0.829977]
[1760044552473,0.40184,121460.0,121450.0,0.829977]
[1760044553074,0.40284,121460.0,121450.0,0.829977]
[1760044553470,0.04204,121460.0,121450.0,1.190777]
[1760044553773,0.04204,121460.0,121450.0,0.829977]
[1760044554774,0.04104,121460.0,121450.0,0.829977]
[1760044558977,0.04104,121460.0,121450.0,1.02054028]
[1760044560784,0.01325,121460.0,121450.0,1.02054028]
[1760044561270,0.03325,121460.0,121450.0,1.02054028]
[1760044562983,0.03325,121460.0,121450.0,1.16729841]
[1760044563578,0.74971235,121460.0,121450.0,0.41961841]
[1760044563880,0.74971235,121460.0,121450.0,0.829257]
[1760044564679,0.74971235,121460.0,121450.0,0.082297]
[1760044565174,0.74971235,121460.0,121450.0,0.829177]
[1760044565379,1.14971235,121460.0,121450.0,0.97593513]
[1760044566685,1.5601949,121460.0,121450.0,0.14675813]
[1760044566985,0.0989137,121440.0,121430.0,1.01979138]
[1760044567186,1.14870605,121440.0,121430.0,1.01979138]
[1760044567382,1.17617605,121440.0,121430.0,0.8292281]
[1760044567685,1.34026572,121440.0,121430.0,0.8292281]
[1760044568079,1.34026572,121440.0,121430.0,0.0823081]
[1760044568283,1.34026572,121440.0,121430.0,0.8301481]
[1760044569687,1.74026572,121440.0,121430.0,0.0823106]
[1760044569889,1.74026572,121440.0,121430.0,0.6119106]
[1760044570483,1.74026572,121440.0,121420.0,0.29880027]
[1760044570484,0.0823106,121430.0,121420.0,0.29880027]
[1760044570685,0.97947262,121430.0,121420.0,1.04656027]
[1760044570985,0.73333161,121430.0,121420.0,0.89980214]
[1760044572077,0.73333161,121430.0,121420.0,0.90080214]
[1760044572683,0.75333161,121430.0,121420.0,0.90080214]
[1760044572891,0.75333161,121430.0,121420.0,0.89980214]
[1760044573484,0.75333161,121430.0,121420.0,1.23718816]
[1760044574587,0.75333161,121430.0,121420.0,1.04662488]
[1760044575594,0.75333161,121430.0,121420.0,0.29886488]
[1760044575794,0.75333161,121430.0,121420.0,1.04654488]
[1760044577695,0.75333161,121430.0,121420.0,0.29886488]
[1760044577895,0.75333161,121430.0,121420.0,1.04630488]
[1760044578391,0.99947262,121430.0,121420.0,1.04630488]
[1760044578898,0.99947262,121430.0,121420.0,0.29886488]
[1760044579097,0.99947262,121430.0,121420.0,1.04634488]
[1760044579294,1.39947262,121430.0,121420.0,0.21655148]
[1760044579500,1.39947262,121430.0,121420.0,0.96399148]
[1760044580697,1.39947262,121430.0,121420.0,0.81716874]
[1760044585395,1.39947262,121430.0,121420.0,0.89948614]
[1760044587900,1.39947262,121430.0,121420.0,0.15204614]
[1760044588100,1.39947262,121430.0,121420.0,0.89912614]
[1760044588797,0.42488,121430.0,121420.0,0.89912614]
[1760044588994,0.67102101,121430.0,121420.0,1.14526715]
[1760044589192,0.75333161,121430.0,121420.0,0.89912614]
[1760044589503,0.67102101,121430.0,121420.0,0.89912614]
[1760044589894,0.42488,121430.0,121420.0,0.89912614]
[1760044590095,0.67102101,121430.0,121420.0,0.89912614]
[1760044590301,0.75333161,121430.0,121420.0,0.89912614]
[1760044599803,0.99947262,121430.0,121420.0,0.89916614]
[1760044604110,0.99947262,121430.0,121420.0,1.04598888]
[1760044608212,0.5071906,121430.0,121420.0,1.04598888]
[1760044608408,0.99947262,121430.0,121420.0,1.04598888]
[1760044608812,0.99947262,121430.0,121420.0,0.89916614]
[1760044610117,0.99947262,121430.0,121420.0,0.15204614]
[1760044610307,0.99947262,121430.0,121420.0,0.89868614]
[1760044612513,0.99947262,121430.0,121420.0,0.89856614]
[1760044615718,0.99947262,121430.0,121420.0,0.15204614]
[1760044616019,0.99947262,121430.0,121420.0,0.89844614]
[1760044618520,0.99947262,121430.0,121420.0,1.04526888]
[1760044618719,0.5071906,121430.0,121420.0,1.04526888]
[1760044618919,0.99947262,121430.0,121420.0,1.04526888]
[1760044619222,0.99947262,121430.0,121420.0,0.15204614]
[1760044619424,0.99947262,121430.0,121420.0,0.89832614]
[1760044619824,0.99947262,121430.0,121420.0,0.89828614]
[1760044621125,0.99947262,121430.0,121420.0,0.15204614]
[1760044621328,0.99947262,121430.0,121420.0,0.89828614]
[1760044622222,0.99947262,121430.0,121420.0,0.15204614]
[1760044622424,0.99947262,121430.0,121420.0,0.89820614]
[1760044622825,0.99947262,121430.0,121420.0,1.08876942]
[1760044623830,0.99947262,121430.0,121420.0,0.34260942]
[1760044624025,0.99947262,121430.0,121420.0,0.15204614]
[1760044624225,0.99947262,121430.0,121420.0,1.04536028]
[1760044624822,0.99947262,121430.0,121420.0,0.89812614]
[1760044625532,1.39947262,121430.0,121420.0,0.15204614]
[1760044625733,1.39947262,121430.0,121420.0,0.79892028]
[1760044628144,1.39947262,121430.0,121420.0,0.65168614]
[1760044628332,1.39947262,121430.0,121420.0,0.79891395]
[1760044629442,1.23551531,121430.0,121420.0,0.79891395]
[1760044629940,1.25551531,121430.0,121420.0,0.21695655]
[1760044634150,1.23551531,121430.0,121420.0,0.21695655]
[1760044634649,1.23551531,121430.0,121420.0,0.06972874]
[1760044635548,1.98155531,121430.0,121420.0,0.06972874]
[1760044639456,1.98155531,121430.0,121420.0,0.15204614]
[1760044639752,1.98155531,121430.0,121420.0,0.06972874]
[1760044641359,1.98155531,121430.0,121420.0,0.15204614]
[1760044641760,1.98155531,121430.0,121420.0,0.06972874]
[1760044644658,1.98159531,121430.0,121420.0,0.06972874]
[1760044645453,1.23551531,121430.0,121420.0,0.15204614]
[1760044645659,1.98159531,121430.0,121420.0,0.15204614]
[1760044647462,1.23551531,121430.0,121420.0,0.15204614]
[1760044647651,0.83551531,121430.0,121420.0,0.15204614]
[1760044647856,0.75320471,121430.0,121420.0,0.15204614]
[1760044648265,0.42488,121430.0,121420.0,0.15204614]
[1760044648464,0.75320471,121430.0,121420.0,0.15204614]
[1760044650263,0.42488,121430.0,121420.0,0.55204614]
[1760044650461,0.03661,121430.0,121420.0,1.24117085]
[1760044650766,0.03661,121430.0,121420.0,1.43173413]
[1760044651161,0.03661,121430.0,121420.0,1.10340942]
[1760044652265,0.03661,121430.0,121420.0,1.10440942]
[1760044652765,0.02,121430.0,121420.0,1.57972825]
[1760044652964,0.02,121430.0,121420.0,1.38916497]
[1760044655969,0.02,121430.0,121420.0,1.24217085]
[1760044657163,0.02,121430.0,121420.0,1.36744977]
[1760044658260,0.02,121430.0,121420.0,1.24217085]
[1760044659067,0.02,121430.0,121420.0,1.98809085]
[1760044659866,0.02,121430.0,121420.0,2.10991293]
[1760044662470,0.02,121430.0,121420.0,1.70991293]
[1760044663973,0.03712,121430.0,121420.0,0.96399293]
[1760044664172,0.03712,121430.0,121420.0,1.70987293]
[1760044664872,0.06264,121430.0,121420.0,0.96399293]
[1760044665068,0.06264,121430.0,121420.0,1.70987293]
[1760044665670,0.06264,121430.0,121420.0,1.38154822]
[1760044667772,0.06264,121430.0,121420.0,0.51384614]
[1760044667972,0.39096471,121430.0,121420.0,1.25968614]
[1760044668168,0.06264,121430.0,121420.0,1.25968614]
[1760044671472,0.06264,121430.0,121420.0,1.45017863]
[1760044672276,0.06264,121430.0,121420.0,0.70433863]
[1760044672774,0.06264,121430.0,121420.0,1.45017863]
[1760044674574,0.39096471,121430.0,121420.0,1.45017863]
[1760044676377,0.39096471,121430.0,121420.0,1.25968614]
[1760044676576,0.06264,121430.0,121420.0,1.25968614]
[1760044677481,0.06264,121430.0,121420.0,1.45017863]
[1760044677779,0.06264,121430.0,121420.0,1.45013863]
[1760044679580,0.06264,121430.0,121420.0,0.70433863]
[1760044679774,0.06264,121430.0,121420.0,1.45013863]
[1760044682278,0.06264,121430.0,121420.0,1.25964614]
[1760044683683,0.39096471,121430.0,121420.0,1.25964614]
[1760044685784,0.06264,121430.0,121420.0,1.25964614]
[1760044686085,0.39096471,121430.0,121420.0,1.25964614]
[1760044686387,0.06264,121430.0,121420.0,1.25964614]
[1760044686580,0.39096471,121430.0,121420.0,1.25964614]
[1760044686980,0.39096471,121430.0,121420.0,0.89884614]
[1760044687588,0.39096471,121430.0,121420.0,1.25964614]
[1760044688088,0.06264,121430.0,121420.0,1.25964614]
[1760044691487,0.30876716,121430.0,121420.0,1.5057733]
[1760044691787,0.30876716,121430.0,121420.0,0.51384614]
[1760044691991,0.66956716,121430.0,121420.0,1.08929863]
[1760044692294,0.66956716,121430.0,121420.0,1.23638162]
[1760044693092,0.66956716,121430.0,121420.0,1.04588913]
[1760044696394,0.30876716,121430.0,121420.0,1.04588913]
[1760044696590,0.66956716,121430.0,121420.0,1.04588913]
[1760044697091,0.42344,121430.0,121420.0,1.04588913]
[1760044697299,0.03712,121430.0,121420.0,1.65281629]
[1760044697597,0.28324716,121430.0,121420.0,1.65281629]
[1760044697896,0.28324716,121430.0,121420.0,1.5057333]
[1760044700601,0.28324716,121430.0,121420.0,1.1449333]
[1760044700802,0.28324716,121430.0,121420.0,1.37929359]
[1760044701306,0.28324716,121430.0,121420.0,2.87929359]
[1760044706710,0.28324716,121430.0,121420.0,2.6449333]
[1760044707807,0.28324716,121430.0,121420.0,2.83613111]
[1760044709410,0.28324716,121430.0,121420.0,2.59000395]
[1760044709604,0.28324716,121430.0,121420.0,2.83613111]
[1760044712008,0.28324716,121430.0,121420.0,2.59000395]
[1760044712207,0.28324716,121430.0,121420.0,2.83613111]
[1760044713104,0.28324716,121430.0,121420.0,2.59000395]
[1760044713503,0.28324716,121430.0,121420.0,2.73696702]
[1760044714008,0.28324716,121430.0,121420.0,2.54576921]
[1760044715912,0.28324716,121430.0,121420.0,2.39868614]
[1760044720913,0.28324716,121430.0,121420.0,2.39864614]
[1760044726506,0.28324716,121430.0,121420.0,2.58986092]
[1760044726910,0.28324716,121430.0,121420.0,2.58982092]
[1760044729019,0.28324716,121430.0,121420.0,2.39860614]
[1760044736827,0.28324716,121430.0,121420.0,2.63296643]
[1760044742330,0.03712,121430.0,121420.0,2.63296643]
[1760044742532,0.28324716,121430.0,121420.0,2.63296643]
[1760044742830,0.28324716,121430.0,121420.0,2.39860614]
[1760044748335,0.03712,121430.0,121420.0,2.39860614]
[1760044748536,0.28324716,121430.0,121420.0,2.58987564]
[1760044751528,0.36530888,121430.0,121420.0,2.58987564]
[1760044751726,0.36530888,121430.0,121420.0,0.49144601]
[1760044751931,1.15247888,121430.0,121420.0,1.23684601]
[1760044752131,1.23478948,121430.0,121420.0,0.30017651]
[1760044752337,0.75247888,121430.0,121420.0,1.04557651]
[1760044752541,0.75247888,121430.0,121420.0,0.89844614]
[1760044753434,0.75247888,121430.0,121420.0,0.89744614]
[1760044756733,0.42429,121430.0,121420.0,0.89744614]
[1760044756932,0.75247888,121430.0,121420.0,0.89744614]
[1760044757131,0.75247888,121430.0,121420.0,1.08871564]
[1760044759436,0.75247888,121430.0,121420.0,0.89744614]
[1760044760738,0.03712,121430.0,121420.0,1.25824614]
[1760044761233,0.01661,121450.0,121440.0,0.0823038]
[1760044761427,0.37116888,121450.0,121440.0,0.97479105]
[1760044762140,0.37116888,121450.0,121440.0,0.8277038]
[1760044762937,0.37116888,121450.0,121440.0,0.97479105]
[1760044763739,0.37116888,121450.0,121440.0,0.8277038]
[1760044763939,0.73196888,121450.0,121440.0,0.8277038]
[1760044765844,0.73196888,121450.0,121440.0,0.0823038]
[1760044766044,0.73196888,121450.0,121440.0,0.8276638]
[1760044766748,0.73196888,121450.0,121440.0,0.0823038]
[1760044766950,0.73196888,121450.0,121440.0,0.8276238]
[1760044767850,1.54245716,121450.0,121430.0,0.22939345]
[1760044768048,1.05826776,121440.0,121430.0,0.22939345]
[1760044768248,0.73007888,121440.0,121430.0,0.97471345]
[1760044768651,0.73007888,121440.0,121430.0,0.8276262]
[1760044770448,0.73007888,121440.0,121430.0,1.0188957]
[1760044771652,0.73007888,121440.0,121430.0,0.8276262]
[1760044780064,0.73007888,121440.0,121430.0,0.97461636]
[1760044782462,0.73007888,121440.0,121430.0,0.8276262]
[1760044783159,0.73007888,121440.0,121430.0,0.97461762]
[1760044785161,0.40189,121440.0,121430.0,0.97461762]
[1760044785360,0.73007888,121440.0,121430.0,0.97461762]
[1760044785560,0.73007888,121440.0,121430.0,0.8276262]
[1760044786461,0.73007888,121440.0,121430.0,0.97461762]
[1760044789172,0.73007888,121440.0,121430.0,0.97561762]
[1760044793563,0.01472,121440.0,121430.0,1.1894262]
[1760044799475,0.01472,121440.0,121430.0,1.3806957]
[1760044801867,0.01661,121450.0,121440.0,0.0823038]
[1760044802068,0.02,121460.0,121450.0,0.082297]
[1760044802276,0.02,121460.0,121450.0,1.188217]
[1760044802463,0.02,121460.0,121450.0,1.588217]
[1760044802870,0.02,121460.0,121450.0,1.73529647]
[1760044804374,0.05872,121460.0,121450.0,1.73525647]
[1760044804669,0.03525,121460.0,121450.0,1.73525647]
[1760044805069,0.02,121460.0,121450.0,1.91636588]
[1760044805271,0.00288395,121470.0,121460.0,0.0822903]
[1760044805572,0.00288395,121470.0,121460.0,0.6343598]
[1760044805970,0.00288395,121470.0,121460.0,1.44469897]
[1760044806568,0.00288395,121470.0,121460.0,1.25342947]
[1760044807668,0.00288395,121470.0,121460.0,0.50838947]
[1760044807875,0.00288395,121470.0,121460.0,1.25342947]
[1760044808773,0.00288395,121470.0,121460.0,0.50838947]
[1760044808969,0.00288395,121470.0,121460.0,1.25338947]
[1760044811478,0.28754843,121470.0,121460.0,1.49929395]
[1760044812074,0.28754843,121470.0,121460.0,0.75433395]
[1760044812275,0.28754843,121470.0,121460.0,1.49929395]
[1760044813577,0.28754843,121470.0,121460.0,1.49925395]
[1760044819387,0.28754843,121470.0,121460.0,0.75433395]
[1760044819687,0.28754843,121470.0,121460.0,1.64625342]
[1760044821682,0.28754843,121470.0,121460.0,0.29466894]
[1760044821886,0.28754843,121470.0,121460.0,1.03950894]
[1760044822683,0.28754843,121470.0,121460.0,0.29466894]
[1760044822876,0.28754843,121470.0,121460.0,0.89238947]
[1760044823787,0.28754843,121470.0,121460.0,0.29466894]
[1760044823983,0.28754843,121470.0,121460.0,1.03946894]
[1760044824388,0.28754843,121470.0,121460.0,0.89238947]
[1760044824583,0.28754843,121470.0,121460.0,1.03893784]
[1760044825390,0.28754843,121470.0,121460.0,0.29413784]
[1760044825579,0.64834843,121470.0,121460.0,1.03893784]
[1760044827684,0.64834843,121470.0,121460.0,0.29413784]
[1760044827892,0.64834843,121470.0,121460.0,1.03893784]
[1760044828690,0.40240395,121470.0,121460.0,1.03893784]
[1760044828891,0.64834843,121470.0,121460.0,1.03893784]
[1760044829192,0.28754843,121470.0,121460.0,0.29413784]
[1760044829389,0.28754843,121470.0,121460.0,0.89234947]
[1760044830192,0.28754843,121470.0,121460.0,1.03911925]
[1760044830993,0.28754843,121470.0,121460.0,0.89234947]
[1760044832095,0.28754843,121470.0,121460.0,0.89308947]
[1760044832591,0.04160395,121470.0,121460.0,0.89308947]
[1760044832795,0.28754843,121470.0,121460.0,0.89308947]
[1760044833686,0.64834843,121470.0,121460.0,0.89308947]
[1760044834098,0.40240395,121470.0,121460.0,0.89308947]
[1760044834398,0.64834843,121470.0,121460.0,0.89308947]
[1760044834800,0.40240395,121470.0,121460.0,0.89308947]
[1760044835000,0.64834843,121470.0,121460.0,0.14832947]
[1760044835194,0.64834843,121470.0,121460.0,0.89308947]